fUST/lending_fUST_20251018
["ID","MTS","AMOUNT","RATE_DAILY","PERIOD"]
[391652987,1760719832722,-250.0,0.00028583,2]
[391652989,1760719832731,-250.0,0.00028583,2]
[391652991,1760719832741,-250.0,0.00028583,2]
[391652993,1760719832750,-250.0,0.00028583,2]
[391652995,1760719832760,-250.0,0.00028583,2]
[391652997,1760719832769,-150.0,0.00028587,2]
[391652999,1760719832778,-1515.86,0.0002859,3]
[391653001,1760719832787,-757.93,0.0002859,3]
[391653003,1760719832796,-378.97,0.0002859,3]
[391653005,1760719832807,-189.48,0.0002859,3]
[391653006,1760719832816,-568.47,0.0002859,3]
[391653007,1760719832825,-10548.067366,0.0002859,2]
[391653009,1760719832835,-4306.32983044,0.0002859,2]
[391653011,1760719832845,-500.0,0.00028599,2]
[391653012,1760719832854,-500.0,0.00028599,2]
[391653014,1760719832864,-500.0,0.00028599,2]
[391653016,1760719832874,-500.0,0.00028599,2]
[391653017,1760719832883,-500.0,0.00028599,2]
[391653019,1760719832893,-500.0,0.00028599,2]
[391653021,1760719832903,-500.0,0.00028599,2]
[391653022,1760719832912,-500.0,0.00028599,2]
[391653024,1760719832922,-500.0,0.00028599,2]
[391653026,1760719832932,-500.0,0.00028599,2]
[391653028,1760719832942,-276.17688339,0.00028599,2]
[391653030,1760719832951,-471.11614795,0.00028599,2]
[391653032,1760719832960,-411.87344651,0.00028599,2]
[391653034,1760719832970,-500.0,0.00028599,2]
[391653036,1760719832979,-468.01091355,0.00028599,2]
[391653038,1760719832988,-500.0,0.00028599,2]
[391653040,1760719832999,-250.0,0.00028599,2]
[391653042,1760719833008,-500.0,0.00028599,2]
[391653044,1760719833018,-4535.84,0.000286,2]
[391653046,1760719833027,-84384.5389277,0.000286,2]
[391653048,1760719833036,-15195.94828786,0.000286,2]
[391653186,1760719838426,-1242.76900197,0.000286,2]
[391653187,1760719838438,-5068.88552824,0.000286,2]
[391653188,1760719838450,-5309.36185415,0.000286,2]
[391653189,1760719838462,-7633.67397128,0.000286,2]
[391653190,1760719838472,-166.68,0.00028609,7]
[391653191,1760719838482,-162.68067259,0.00028609,2]
[391653192,1760719838492,-4.33334406,0.0002861,2]
[391653193,1760719838503,-3742.1345887,0.0002861,2]
[391653222,1760719840722,-393.5269997,0.00028578,2]
[391653224,1760719840734,-1414.7228368,0.00028578,2]
[391653226,1760719840743,-17133.74278366,0.0002861,2]
[391653228,1760719840754,-24421.6915447,0.0002861,2]
[391653504,1760719843495,-7209.42577634,0.0002861,2]
[391653798,1760719846502,-23494.30752114,0.0002861,2]
[391657398,1760719961394,409.239574,0.00013699,2]
[391657399,1760719961641,409.239574,0.00020187,2]
[391657400,1760719962131,409.239574,0.00026676,2]
[391657403,1760720035296,3216.0,0.00027,2]
[391657404,1760720066426,200.0,0.0002651,2]
[391657416,1760720261422,-200.0,0.000271,2]
[391657417,1760720333010,3997.91,0.00027,2]
[391657419,1760720404545,500.0,0.00025205,2]
[391657420,1760720404937,432.92425074,0.00025205,2]
[391657431,1760720703783,417.15472785,0.00027,2]
[391657436,1760720729968,402.69031254,0.00027,2]
[391657442,1760720803106,-225.59414926,0.00027442,7]
[391657443,1760720841265,-6782.41392049,0.00027186,2]
[391657444,1760720842767,-217.5,0.00027186,2]
[391657447,1760720846482,-641.979412,0.00027186,2]
[391657448,1760720848008,-160.0,0.00027186,2]
[391657449,1760720851823,-613.9,0.00027186,2]
[391657450,1760720854920,-172.5,0.00027186,2]
[391657451,1760720857870,1019.479412,0.00027,2]
[391657452,1760720858488,-188.89530046,0.00027186,2]
[391657453,1760720859974,-172.5,0.00027186,2]
[391657454,1760720886931,-164.72928883,0.00027185,2]
[391657455,1760720971852,-302.54622906,0.00027046,18]
[391657485,1760721032647,-300.0,0.00027185,2]
[391657487,1760721032657,-1200.0,0.00027185,2]
[391657489,1760721032667,-19032.94759501,0.00027186,2]
[391657729,1760721040712,-3e-08,0.00027186,2]
[391658032,1760721043732,-2000.0,0.00027186,2]
[391658034,1760721043744,-657.72251091,0.00027186,2]
[391658036,1760721043754,-104.40585074,0.00027442,7]
[391658038,1760721043764,-329.0,0.00027838,7]
[391658041,1760721043774,-329.0,0.00027883,2]
[391658042,1760721043783,-200.0,0.00027883,2]
[391658045,1760721043793,-328.0,0.00027973,2]
[391658046,1760721043802,-7462.48839147,0.00028,2]
[391658049,1760721043812,-328.0,0.00028007,2]
[391658051,1760721043821,-328.0,0.00028017,2]
[391658053,1760721043831,-328.0,0.00028096,7]
[391658055,1760721043840,-330.0,0.00028097,2]
[391658056,1760721043850,-328.0,0.00028158,2]
[391658059,1760721043859,-563.81373792,0.00028158,2]
[391658061,1760721043869,-328.0,0.00028162,2]
[391658063,1760721043878,-329.0,0.00028171,2]
[391658065,1760721043887,-328.0,0.00028185,2]
[391658067,1760721043896,-4110.76,0.0002821,4]
[391658069,1760721043906,-328.0,0.00028296,2]
[391658071,1760721043916,-329.0,0.00028325,2]
[391658074,1760721043925,-328.0,0.00028351,7]
[391658077,1760721043935,-1324.03641462,0.0002841,2]
[391658080,1760721043944,-1361.6883288,0.0002841,2]
[391658082,1760721043953,-328.0,0.00028422,2]
[391658084,1760721043968,-328.0,0.00028462,7]
[391658086,1760721043978,-166.0,0.00028483,2]
[391658088,1760721043987,-156.87482739,0.00028499,2]
[391658090,1760721043996,-250.0,0.00028499,2]
[391658092,1760721044006,-163.45734977,0.00028499,2]
[391658094,1760721044015,-925.82,0.000285,3]
[391658096,1760721044024,-595.18,0.000285,3]
[391658098,1760721044034,-297.59,0.000285,3]
[391658099,1760721044045,-892.79,0.000285,3]
[391658100,1760721044054,-358.42,0.000285,10]
[391658101,1760721044063,-27446.95540756,0.000285,2]
[391658102,1760721044079,-818.48104579,0.000285,2]
[391658103,1760721044091,-12344.62290565,0.000285,2]
[391658105,1760721044100,-6562.30628963,0.000285,2]
[391658106,1760721044118,-452.54102016,0.000285,2]
[391658107,1760721044129,-6040.0,0.000285,2]
[391658108,1760721044140,-3151.48671591,0.000285,2]
[391658109,1760721044149,-4346.85,0.00028509,2]
[391658110,1760721044158,-1228.2128778,0.0002851,2]
[391658111,1760721044168,-10138.07589029,0.0002851,2]
[391658112,1760721044180,-775.74,0.0002851,2]
[391658113,1760721044191,-2048.82555323,0.0002851,2]
[391658124,1760721045330,833.63545243,0.00027,2]
[391658158,1760721046706,-116665.1104127,0.0002851,2]
[391658166,1760721054317,2060.5549208,0.00027,2]
[391658167,1760721060285,135.66092364,0.00025205,2]
[391658168,1760721060307,526.01086292,0.00025205,2]
[391658170,1760721063183,5000.0,0.00027,2]
[391658176,1760721068227,1381.26516115,0.00024931,2]
[391658177,1760721068535,1381.26516115,0.00025241,2]
[391658178,1760721069395,1381.26516115,0.00025508,2]
[391658179,1760721069470,-174.897,0.00027051,2]
[391658180,1760721069492,-320.0,0.00028248,2]
[391658181,1760721069781,319.80209532,0.00025884,2]
[391658182,1760721069803,330.20365363,0.00025884,2]
[391658183,1760721069825,731.2594122,0.00025884,2]
[391658184,1760721070118,1381.26516115,0.00026259,2]
[391658185,1760721070977,1381.26516115,0.00026353,2]
[391658186,1760721071399,1381.26516115,0.00026834,2]
[391658187,1760721071777,650.0,0.00026892,2]
[391658188,1760721071799,731.26516115,0.00026892,2]
[391658189,1760721087508,921.7521148,0.00027,2]
[391658190,1760721087530,4078.2478852,0.00027,2]
[391658192,1760721115031,-200.0,0.00027063,2]
[391658193,1760721117577,-4.79926265,0.00027063,2]
[391658194,1760721135621,1121.7521148,0.00022972,2]
[391658197,1760721146501,227.85,0.00020641,2]
[391658198,1760721146985,455.71,0.00022517,2]
[391658199,1760721147420,683.56,0.00024393,2]
[391658200,1760721147871,911.42,0.0002627,2]
[391658201,1760721151146,152.19,0.00027,2]
[391658202,1760721156908,300.0,0.00027,2]
[391658203,1760721172280,300.0,0.00027,2]
[391658204,1760721192034,300.0,0.00027,2]
[391658205,1760721210078,300.0,0.00027,2]
[391658206,1760721214326,300.0,0.00027,2]
[391658207,1760721225314,869.28,0.0002699,2]
[391658208,1760721225337,10000.01,0.0002699,2]
[391658209,1760721225359,10000.01,0.0002699,2]
[391658210,1760721225381,10000.01,0.0002699,2]
[391658211,1760721225408,22229.8127382,0.0002699,2]
[391658212,1760721225436,46900.8772618,0.0002699,2]
[391658213,1760721225588,300.0,0.00027,2]
[391658214,1760721230162,198.86,0.00021012,2]
[391658215,1760721230522,397.71,0.00022922,2]
[391658216,1760721230945,596.57,0.00024832,2]
[391658217,1760721231391,795.42,0.00026742,2]
[391658218,1760721231792,481.86752347,0.00023977,7]
[391658219,1760721232007,300.0,0.00027,2]
[391658220,1760721232392,174.74887725,0.00025205,2]
[391658221,1760721232886,150.0,0.00023977,7]
[391658222,1760721233965,200.96120883,0.00025805,2]
[391658223,1760721234624,227.17354042,0.00026405,2]
[391658224,1760721235094,245.21960033,0.00027005,2]
[391658225,1760721237600,-8.16627168,0.00027005,2]
[391658226,1760721245729,917.3932398,0.00026396,2]
[391658227,1760721245786,500.0,0.000253,2]
[391658228,1760721246670,257.83372832,0.00027,2]
[391658229,1760721246697,42.16627168,0.00027,2]
[391658230,1760721247069,5000.0,0.00027,2]
[391658232,1760721251727,500.0,0.0002645,10]
[391658233,1760721270291,1797.6767673,0.00027,2]
[391658234,1760721290355,1168.676613,0.00026815,2]
[391658239,1760721309069,261.43151407,0.00024959,15]
[391658240,1760721315259,240.57,0.0002469,2]
[391658241,1760721315729,481.14,0.00026934,2]
[391658242,1760721317318,200.0,0.00022972,2]
[391658243,1760721317344,466.0,0.00022972,2]
[391658244,1760721353433,212.29,0.000261,2]
[391658245,1760721361167,402.69031254,0.00027,2]
[391658248,1760721399707,231.39,0.00024615,2]
[391658249,1760721400143,178.432026,0.00026852,2]
[391658250,1760721400168,284.337974,0.00026852,2]
[391658254,1760721482173,222.55,0.00024488,2]
[391658255,1760721482623,445.1,0.00026714,2]
[391658256,1760721493691,2066.4939279,0.0002669,2]
[391658257,1760721502281,646.59965791,0.00026946,18]
[391658258,1760721548592,24221.2884607,0.00026692,2]
[391658259,1760721552943,1394.17374042,0.00026962,2]
[391658260,1760721563923,214.05,0.00024502,2]
[391658261,1760721564367,428.11,0.00026729,2]
[391658263,1760721611643,212.29,0.000261,2]
[391658264,1760721616250,207.38992,0.00034108,60]
[391658265,1760721625617,171.0,0.00024411,13]
[391658266,1760721648775,205.88,0.00024148,2]
[391658267,1760721649191,411.76,0.00026344,2]
[391658269,1760721699442,-307.57999997,0.00027081,2]
[391658270,1760721700312,164.12088673,0.00027,2]
[391658271,1760721729448,-160.0,0.00027081,2]
[391658272,1760721734355,198.02,0.00024114,2]
[391658273,1760721735287,396.04,0.00026306,2]
[391658276,1760721791289,188.088582,0.00026427,2]
[391658277,1760721811877,18527.437826,0.00025205,2]
[391658278,1760721821615,198.09,0.0002418,2]
[391658279,1760721822047,396.19,0.00026378,2]
[391658280,1760721839850,165.78688723,0.00027,2]
[391658281,1760721864262,167.97348728,0.00025205,2]
[391658282,1760721864695,193.16951037,0.00025805,2]
[391658283,1760721865160,218.36553346,0.00026405,2]
[391658284,1760721865808,157.19600711,0.00027005,2]
[391658285,1760721868111,-86.36554944,0.00027005,2]
[391658286,1760721905671,237.66,0.00024124,2]
[391658287,1760721906609,416.09008788,0.00026318,2]
[391658288,1760721906637,59.21991212,0.00026318,2]
[391658289,1760721942146,177.0,0.00024411,13]
[391658291,1760721991316,228.58,0.00024121,2]
[391658292,1760721991764,457.17,0.00026313,2]
[391658293,1760722041367,-147.57999997,0.00027081,2]
[391658294,1760722041389,-59.40963123,0.000271,2]
[391658299,1760722075401,219.85,0.00024098,2]
[391658300,1760722075838,439.71,0.00026289,2]
[391658303,1760722108494,15296.96092546,0.00034112,120]
[391658304,1760722109061,100000.0,0.0002699,2]
[391658305,1760722109278,6073.71225325,0.00029,120]
[391658306,1760722113766,40173.92821118,0.0002,20]
[391658307,1760722113892,554.34429386,0.0002,7]
[391658308,1760722113934,367.45988902,0.0002,2]
[391658309,1760722114083,16454.83279832,0.00015,2]
[391658310,1760722114334,39895.87749245,0.00025,2]
[391658311,1760722114930,161.29577784,0.00024,2]
[391658312,1760722114958,1555.16675208,0.00024,2]
[391658313,1760722115056,30827.40426252,0.00019,2]
[391658314,1760722115646,1400.49431283,0.00025,2]
[391658315,1760722116659,613.9,0.00018,2]
[391658316,1760722118501,217.5,0.00027,2]
[391658317,1760722118530,14782.5,0.00027,2]
[391658318,1760722120186,163.8506941,0.00024,2]
[391658319,1760722121677,1014.27518279,0.0002904,120]
[391658320,1760722122456,460.38111612,0.00024,2]
[391658321,1760722123818,50646.70102281,0.00024142,2]
[391658322,1760722125269,4065.89371395,0.0002,2]
[391658323,1760722159796,235.03,0.0002375,2]
[391658324,1760722160262,470.07,0.00025909,2]
[391658325,1760722201962,666.0,0.00026235,2]
[391658379,1760722231812,-140.59036877,0.000271,2]
[391658381,1760722231821,-141.75510115,0.00027148,2]
[391658383,1760722231833,-713.96033753,0.00027148,2]
[391658385,1760722231844,-538.45830174,0.00027148,2]
[391658387,1760722231853,-144.33570624,0.00027344,2]
[391658389,1760722231865,-1055.66429376,0.00027344,2]
[391658391,1760722231874,-263.73353721,0.00027345,2]
[391658393,1760722231886,-36.26646279,0.00027345,2]
[391658395,1760722231895,-300.0,0.00027345,2]
[391658397,1760722231904,-300.0,0.00027345,2]
[391658399,1760722231913,-91.33353721,0.00027345,2]
[391658402,1760722231924,-208.66646279,0.00027345,2]
[391658403,1760722231933,-300.0,0.00027345,2]
[391658404,1760722231942,-506.1115443,0.00027346,3]
[391658405,1760722231954,-3827.25718664,0.00027346,3]
[391658406,1760722231965,-1777.22561697,0.00027346,3]
[391658407,1760722231976,-6414.82790874,0.00027346,3]
[391658409,1760722231986,-3051.91758636,0.00027347,3]
[391658411,1760722231997,-1245.10276993,0.00027347,3]
[391658414,1760722232009,-1479.48361212,0.00027347,3]
[391658470,1760722237673,-457.85832869,0.00027347,3]
[391658473,1760722237685,-18816.4377029,0.00027347,3]
[391658475,1760722237694,-50000.0,0.00027348,2]
[391658477,1760722237704,-6262.7,0.00027348,3]
[391658479,1760722237713,-538.78,0.0002749,10]
[391658481,1760722237723,-433.0,0.000275,2]
[391658483,1760722237732,-7247.93339481,0.000275,2]
[391658485,1760722237741,-2247.11535138,0.00027536,2]
[391658487,1760722237751,-9437.14750082,0.00027555,2]
[391658489,1760722237762,-165.78688722,0.00027559,2]
[391658491,1760722237771,-7644.26194409,0.00027559,2]
[391658493,1760722237781,-268.75757964,0.00027605,2]
[391658495,1760722237790,-2341.21,0.00027636,3]
[391658497,1760722237799,-1170.6,0.00027636,3]
[391658499,1760722237808,-585.3,0.00027636,3]
[391658501,1760722237817,-292.65,0.00027636,3]
[391658503,1760722237827,-877.98,0.00027636,3]
[391658505,1760722237836,-1000.0,0.00027642,2]
[391658507,1760722237845,-151.0,0.00027642,2]
[391658509,1760722237855,-1000.0,0.00027642,2]
[391658510,1760722237863,-1000.0,0.00027642,2]
[391658512,1760722237873,-1000.0,0.00027642,2]
[391658514,1760722237882,-1000.0,0.00027642,2]
[391658516,1760722237891,-250.0,0.00027642,2]
[391658518,1760722237900,-1000.0,0.00027642,2]
[391658520,1760722237909,-1000.0,0.00027642,2]
[391658522,1760722237918,-250.0,0.00027642,2]
[391658524,1760722237929,-1000.0,0.00027642,2]
[391658526,1760722237938,-1000.0,0.00027642,2]
[391658528,1760722237947,-250.0,0.00027642,2]
[391658530,1760722237957,-1000.0,0.00027642,2]
[391658532,1760722237966,-1000.0,0.00027642,2]
[391658534,1760722237975,-250.0,0.00027642,2]
[391658536,1760722237985,-1000.0,0.00027642,2]
[391658538,1760722237995,-251.1891536,0.00027642,2]
[391658540,1760722238006,-1000.0,0.00027642,2]
[391658542,1760722238015,-1000.0,0.00027642,2]
[391658544,1760722238025,-250.0,0.00027642,2]
[391658546,1760722238034,-151.0,0.00027642,2]
[391658548,1760722238044,-1000.0,0.00027642,2]
[391658550,1760722238053,-1000.0,0.00027642,2]
[391658552,1760722238063,-250.0,0.00027642,2]
[391658554,1760722238073,-1000.0,0.00027642,2]
[391658556,1760722238083,-1000.0,0.00027642,2]
[391658558,1760722238092,-250.0,0.00027642,2]
[391658560,1760722238102,-1000.0,0.00027642,2]
[391658563,1760722238112,-1000.0,0.00027642,2]
[391658564,1760722238121,-250.0,0.00027642,2]
[391658566,1760722238130,-151.0,0.00027642,2]
[391658568,1760722238139,-1000.0,0.00027642,2]
[391658570,1760722238148,-250.0,0.00027642,2]
[391658572,1760722238158,-151.0,0.00027642,2]
[391658574,1760722238168,-1000.0,0.00027642,2]
[391658576,1760722238177,-250.0,0.00027642,2]
[391658578,1760722238186,-1000.0,0.00027642,2]
[391658580,1760722238195,-151.0,0.00027642,2]
[391658582,1760722238205,-1000.0,0.00027642,2]
[391658584,1760722238214,-250.0,0.00027642,2]
[391658586,1760722238223,-1000.0,0.00027642,2]
[391658587,1760722238232,-151.0,0.00027642,2]
[391658589,1760722238241,-1000.0,0.00027642,2]
[391658591,1760722238252,-250.0,0.00027642,2]
[391658593,1760722238266,-1000.0,0.00027642,2]
[391658595,1760722238275,-151.0,0.00027642,2]
[391658597,1760722238285,-1000.0,0.00027642,2]
[391658599,1760722238294,-250.0,0.00027642,2]
[391658601,1760722238304,-1000.0,0.00027642,2]
[391658603,1760722238313,-151.0,0.00027642,2]
[391658605,1760722238323,-1116.56473159,0.00027642,2]
[391658607,1760722238332,-250.0,0.00027642,2]
[391658609,1760722238342,-1000.0,0.00027642,2]
[391658611,1760722238352,-151.0,0.00027642,2]
[391658613,1760722238361,-250.0,0.00027642,2]
[391658615,1760722238371,-1000.0,0.00027642,2]
[391658618,1760722238380,-151.0,0.00027642,2]
[391658619,1760722238389,-1000.0,0.00027642,2]
[391658621,1760722238399,-151.0,0.00027642,2]
[391658623,1760722238408,-238.42884912,0.00027642,2]
[391658625,1760722238417,-1000.0,0.00027642,2]
[391658628,1760722238427,-166.0,0.00027642,2]
[391658629,1760722238438,-20746.26328358,0.00027642,2]
[391658631,1760722238448,-151.0,0.00027642,2]
[391658633,1760722238457,-151.0,0.00027642,2]
[391658635,1760722238466,-151.0,0.00027642,2]
[391658637,1760722238476,-151.0,0.00027642,2]
[391658639,1760722238485,-151.0,0.00027642,2]
[391658642,1760722238494,-151.0,0.00027642,2]
[391658643,1760722238505,-151.0,0.00027642,2]
[391658646,1760722238515,-151.0,0.00027642,2]
[391658648,1760722238531,-151.0,0.00027642,2]
[391658650,1760722238544,-151.0,0.00027642,2]
[391658652,1760722238554,-151.0,0.00027642,2]
[391658662,1760722238653,-500.0,0.00027646,2]
[391658664,1760722238663,-500.0,0.00027646,2]
[391658666,1760722238673,-500.0,0.00027646,2]
[391658668,1760722238682,-500.0,0.00027646,2]
[391658670,1760722238691,-500.0,0.00027646,2]
[391658672,1760722238701,-439.29718605,0.00027646,2]
[391658674,1760722238711,-500.0,0.00027646,2]
[391658676,1760722238721,-500.0,0.00027646,2]
[391658678,1760722238730,-500.0,0.00027646,2]
[391658680,1760722238740,-500.0,0.00027646,2]
[391658682,1760722238751,-500.0,0.00027646,2]
[391658684,1760722238762,-500.0,0.00027646,2]
[391658686,1760722238771,-500.0,0.00027646,2]
[391658688,1760722238781,-416.38287347,0.00027646,2]
[391658690,1760722238793,-500.0,0.00027646,2]
[391658692,1760722238803,-500.0,0.00027646,2]
[391658694,1760722238815,-500.0,0.00027646,2]
[391658696,1760722238825,-500.0,0.00027646,2]
[391658698,1760722238834,-500.0,0.00027646,2]
[391658700,1760722238844,-500.0,0.00027646,2]
[391658702,1760722238854,-500.0,0.00027646,2]
[391658704,1760722238863,-500.0,0.00027646,2]
[391658706,1760722238872,-500.0,0.00027646,2]
[391658708,1760722238881,-500.0,0.00027646,2]
[391658710,1760722238890,-500.0,0.00027646,2]
[391658712,1760722238900,-500.0,0.00027646,2]
[391658714,1760722238909,-500.0,0.00027646,2]
[391658716,1760722238919,-500.0,0.00027646,2]
[391658718,1760722238928,-500.0,0.00027646,2]
[391658720,1760722238937,-159.31190944,0.00027646,2]
[391658722,1760722238947,-500.0,0.00027646,2]
[391658724,1760722238955,-500.0,0.00027646,2]
[391658726,1760722238964,-500.0,0.00027646,2]
[391658728,1760722238974,-500.0,0.00027646,2]
[391658730,1760722238983,-500.0,0.00027646,2]
[391658732,1760722238992,-500.0,0.00027646,2]
[391658734,1760722239001,-500.0,0.00027646,2]
[391658736,1760722239011,-500.0,0.00027646,2]
[391658738,1760722239021,-500.0,0.00027646,2]
[391658740,1760722239030,-500.0,0.00027646,2]
[391658742,1760722239039,-500.0,0.00027646,2]
[391658744,1760722239050,-500.0,0.00027646,2]
[391658746,1760722239059,-500.0,0.00027646,2]
[391658748,1760722239069,-500.0,0.00027646,2]
[391658750,1760722239079,-500.0,0.00027646,2]
[391658752,1760722239089,-183.41899847,0.00027646,2]
[391658754,1760722239099,-500.0,0.00027646,2]
[391658756,1760722239109,-500.0,0.00027646,2]
[391658758,1760722239119,-500.0,0.00027646,2]
[391658760,1760722239128,-500.0,0.00027646,2]
[391658762,1760722239138,-500.0,0.00027646,2]
[391658764,1760722239148,-500.0,0.00027646,2]
[391658766,1760722239157,-500.0,0.00027646,2]
[391658768,1760722239167,-500.0,0.00027646,2]
[391658770,1760722239176,-500.0,0.00027646,2]
[391658772,1760722239186,-500.0,0.00027646,2]
[391658774,1760722239195,-500.0,0.00027646,2]
[391658776,1760722239204,-500.0,0.00027646,2]
[391658778,1760722239215,-500.0,0.00027646,2]
[391658780,1760722239224,-500.0,0.00027646,2]
[391658782,1760722239234,-500.0,0.00027646,2]
[391658784,1760722239243,-500.0,0.00027646,2]
[391658786,1760722239257,-500.0,0.00027646,2]
[391658788,1760722239268,-500.0,0.00027646,2]
[391658790,1760722239278,-500.0,0.00027646,2]
[391658792,1760722239288,-500.0,0.00027646,2]
[391658794,1760722239297,-504.46472931,0.00027646,2]
[391658796,1760722239309,-500.0,0.00027646,2]
[391658798,1760722239318,-500.0,0.00027646,2]
[391658800,1760722239329,-500.0,0.00027646,2]
[391658802,1760722239338,-500.0,0.00027646,2]
[391658804,1760722239347,-500.0,0.00027646,2]
[391658806,1760722239356,-500.0,0.00027646,2]
[391658808,1760722239366,-500.0,0.00027646,2]
[391658810,1760722239375,-500.0,0.00027646,2]
[391658812,1760722239384,-500.0,0.00027646,2]
[391658814,1760722239394,-500.0,0.00027646,2]
[391658816,1760722239403,-500.0,0.00027646,2]
[391658818,1760722239412,-500.0,0.00027646,2]
[391658820,1760722239422,-500.0,0.00027646,2]
[391658822,1760722239431,-604.87631682,0.00027646,2]
[391658825,1760722239441,-500.0,0.00027646,2]
[391658828,1760722239450,-500.0,0.00027646,2]
[391658830,1760722239459,-500.0,0.00027646,2]
[391658832,1760722239468,-500.0,0.00027646,2]
[391658834,1760722239478,-500.0,0.00027646,2]
[391658836,1760722239487,-500.0,0.00027646,2]
[391658838,1760722239495,-500.0,0.00027646,2]
[391658840,1760722239505,-500.0,0.00027646,2]
[391658842,1760722239524,-500.0,0.00027646,2]
[391658844,1760722239534,-500.0,0.00027646,2]
[391658846,1760722239544,-500.0,0.00027646,2]
[391658848,1760722239554,-500.0,0.00027646,2]
[391658849,1760722239564,-500.0,0.00027646,2]
[391658851,1760722239573,-500.0,0.00027646,2]
[391658853,1760722239583,-500.0,0.00027646,2]
[391658855,1760722239592,-500.0,0.00027646,2]
[391658857,1760722239602,-500.0,0.00027646,2]
[391658859,1760722239611,-500.0,0.00027646,2]
[391658861,1760722239621,-500.0,0.00027646,2]
[391658863,1760722239630,-500.0,0.00027646,2]
[391658865,1760722239640,-500.0,0.00027646,2]
[391658867,1760722239649,-500.0,0.00027646,2]
[391658869,1760722239660,-500.0,0.00027646,2]
[391658871,1760722239670,-500.0,0.00027646,2]
[391658873,1760722239679,-485.0639026,0.00027646,2]
[391658875,1760722239688,-500.0,0.00027646,2]
[391658877,1760722239698,-500.0,0.00027646,2]
[391658879,1760722239707,-500.0,0.00027646,2]
[391658881,1760722239716,-500.0,0.00027646,2]
[391658883,1760722239725,-500.0,0.00027646,2]
[391658885,1760722239735,-578.41010006,0.00027646,2]
[391658886,1760722239744,-500.0,0.00027646,2]
[391658888,1760722239754,-500.0,0.00027646,2]
[391658890,1760722239763,-500.0,0.00027646,2]
[391658892,1760722239772,-500.0,0.00027646,2]
[391658894,1760722239782,-500.0,0.00027646,2]
[391658896,1760722239790,-500.0,0.00027646,2]
[391658897,1760722239799,-500.0,0.00027646,2]
[391658899,1760722239808,-500.0,0.00027646,2]
[391658901,1760722239818,-500.0,0.00027646,2]
[391658903,1760722239827,-500.0,0.00027646,2]
[391658905,1760722239837,-500.0,0.00027646,2]
[391658907,1760722239846,-500.0,0.00027646,2]
[391658909,1760722239855,-500.0,0.00027646,2]
[391658911,1760722239864,-500.0,0.00027646,2]
[391658913,1760722239874,-475.08679711,0.00027646,2]
[391658915,1760722239882,-500.0,0.00027646,2]
[391658917,1760722239891,-500.0,0.00027646,2]
[391658919,1760722239901,-500.0,0.00027646,2]
[391658921,1760722239910,-500.0,0.00027646,2]
[391658923,1760722239918,-500.0,0.00027646,2]
[391658924,1760722239927,-500.0,0.00027646,2]
[391658926,1760722239937,-500.0,0.00027646,2]
[391658928,1760722239950,-1279.85151987,0.00027646,2]